bitfinex/quotes_BTCUSD_20250714
["timestamp","ask_amount","ask_price","bid_price","bid_amount"]
[1752509797592,0.71117836,119160.0,119150.0,0.04852675]
[1752509797756,0.71213836,119160.0,119150.0,0.05252675]
[1752509798208,0.71213836,119160.0,119150.0,0.05452675]
[1752509798411,0.4977852,119160.0,119150.0,0.27304767]
[1752509798646,0.1419619,119160.0,119150.0,0.39508699]
[1752509798860,0.15874499,119160.0,119150.0,0.21044664]
[1752509799072,0.34337047,119160.0,119150.0,0.05452675]
[1752509799260,0.37654738,119160.0,119150.0,0.05452675]
[1752509799794,0.01303355,119160.0,119150.0,0.22238239]
[1752509799997,0.0046419,119160.0,119150.0,0.35429471]
[1752509800213,0.15027334,119160.0,119150.0,0.16965386]
[1752509800402,0.16705657,119160.0,119150.0,0.17804657]
[1752509800641,0.0046419,119160.0,119150.0,0.39538699]
[1752509800844,0.0046419,119160.0,119150.0,0.90353749]
[1752509801053,0.00115302,119160.0,119150.0,0.90353749]
[1752509801256,0.00115302,119160.0,119150.0,1.87679249]
[1752509801257,0.13839302,119160.0,119150.0,1.87679249]
[1752509801443,0.00115302,119160.0,119150.0,1.87408949]
[1752509801630,0.00115302,119160.0,119150.0,1.88863034]
[1752509801836,0.13839302,119160.0,119150.0,1.88863034]
[1752509802280,0.00115302,119160.0,119150.0,1.88863034]
[1752509802758,0.00115302,119160.0,119150.0,3.66913434]
[1752509802940,0.00115302,119160.0,119150.0,3.96513434]
[1752509803112,0.00115302,119160.0,119150.0,4.01513434]
[1752509803348,0.00358414,119180.0,119170.0,0.25470074]
[1752509803496,0.13248738,119210.0,119190.0,0.20134758]
[1752509803702,0.13712,119200.0,119190.0,0.18754871]
[1752509804002,0.19295216,119200.0,119180.0,0.18458992]
[1752509804222,0.15389766,119200.0,119190.0,0.00838989]
[1752509804440,0.1706759,119200.0,119180.0,0.30011703]
[1752509804649,0.34838968,119190.0,119170.0,0.18461007]
[1752509804876,0.73580432,119180.0,119170.0,0.005]
[1752509805088,0.05,119160.0,119150.0,0.05252675]
[1752509805321,0.41517467,119160.0,119150.0,0.21638239]
[1752509805540,0.53301685,119160.0,119150.0,0.04852675]
[1752509805755,1.08584577,119160.0,119150.0,0.04852675]
[1752509805970,1.08484577,119160.0,119150.0,0.04852675]
[1752509806173,1.08184577,119160.0,119150.0,0.04852675]
[1752509806392,1.10754662,119160.0,119150.0,0.04903816]
[1752509807898,1.10854662,119160.0,119150.0,0.05003816]
[1752509808129,1.10754662,119160.0,119150.0,0.04903816]
[1752509808333,1.10754662,119160.0,119150.0,0.05003816]
[1752509808544,0.60339612,119160.0,119150.0,0.05003816]
[1752509809201,1.00539612,119160.0,119150.0,0.05003816]
[1752509809410,1.64403075,119160.0,119150.0,0.05003816]
[1752509809826,1.00539612,119160.0,119150.0,0.05003816]
[1752509810734,0.77609264,119160.0,119150.0,0.05003816]
[1752509810952,0.92987608,119160.0,119150.0,0.05003816]
[1752509811161,0.38848408,119160.0,119150.0,0.22628644]
[1752509811374,0.37010942,119160.0,119150.0,0.05003816]
[1752509811593,0.40332633,119160.0,119150.0,0.05003816]
[1752509811812,1.38503096,119160.0,119150.0,0.05003816]
[1752509812020,0.74639633,119160.0,119150.0,0.05003816]
[1752509813493,0.43316271,119160.0,119150.0,0.05003816]
[1752509813714,0.75171791,119160.0,119150.0,0.05003816]
[1752509814658,0.75171791,119160.0,119150.0,0.22628651]
[1752509814659,0.55809474,119160.0,119150.0,0.22628651]
[1752509814868,0.54131144,119160.0,119150.0,0.23467908]
[1752509815072,0.54123144,119160.0,119150.0,0.23467908]
[1752509815282,0.0811746,119160.0,119150.0,0.22628651]
[1752509815456,0.2180146,119160.0,119150.0,0.23467929]
[1752509815913,0.06439144,119160.0,119150.0,0.25146436]
[1752509816119,0.006,119160.0,119150.0,0.25146436]
[1752509816322,0.14276,119160.0,119150.0,0.26283664]
[1752509816527,0.14276,119160.0,119150.0,0.24605186]
[1752509816732,0.15115144,119160.0,119150.0,0.22628658]
[1752509816950,0.15115144,119160.0,119150.0,0.23467922]
[1752509817164,0.006,119160.0,119150.0,0.251464]
[1752509817377,0.006,119160.0,119150.0,0.39799111]
[1752509817807,0.006,119160.0,119150.0,0.35959861]
[1752509818014,0.006,119160.0,119150.0,0.36799089]
[1752509818283,0.15350154,119170.0,119160.0,0.17623362]
[1752509818492,0.01678154,119170.0,119160.0,0.18462555]
[1752509818698,0.16181242,119170.0,119160.0,0.16784155]
[1752509818905,0.16181242,119170.0,119160.0,0.18462562]
[1752509819124,0.0251727,119170.0,119160.0,0.01568224]
[1752509819371,0.25139147,119170.0,119160.0,0.01674622]
[1752509819629,0.39710211,119170.0,119160.0,0.01668224]
[1752509819829,1.50450188,119170.0,119160.0,0.01668224]
[1752509820243,1.90450188,119170.0,119160.0,0.01668224]
[1752509820685,1.50450188,119170.0,119160.0,0.01668224]
[1752509821120,1.49850188,119170.0,119160.0,0.01568224]
[1752509821551,1.50350188,119170.0,119160.0,0.01669284]
[1752509821760,1.49850188,119170.0,119160.0,0.01569284]
[1752509822012,0.51623348,119160.0,119150.0,0.04903816]
[1752509822450,0.51823348,119160.0,119150.0,0.04903816]
[1752509823531,0.52023348,119160.0,119150.0,0.04903816]
[1752509824405,0.65679348,119160.0,119150.0,0.05003816]
[1752509824614,1.06379348,119160.0,119150.0,0.05003816]
[1752509825264,1.07218534,119160.0,119150.0,0.05003816]
[1752509825480,1.07206534,119160.0,119150.0,0.05003816]
[1752509825913,1.06367348,119160.0,119150.0,0.05003816]
[1752509826131,1.06355348,119160.0,119150.0,0.05003816]
[1752509826344,0.14528,119160.0,119150.0,0.23467901]
[1752509826556,0.19528,119160.0,119150.0,0.24307129]
[1752509826773,0.19528,119160.0,119150.0,0.23467901]
[1752509826997,0.19528,119160.0,119150.0,0.05003816]
[1752509827229,0.39129741,119160.0,119150.0,0.05003816]
[1752509827442,0.21506337,119160.0,119150.0,0.05003816]
[1752509827876,0.21506323,119160.0,119150.0,0.05003816]
[1752509828088,0.062,119160.0,119150.0,0.22628651]
[1752509828339,0.21502309,119160.0,119150.0,0.05003816]
[1752509828554,0.19524,119160.0,119150.0,0.24307122]
[1752509828769,0.009,119160.0,119150.0,0.32747833]
[1752509828985,0.009,119160.0,119150.0,0.38977833]
[1752509829196,0.009,119160.0,119150.0,1.99563722]
[1752509829408,0.009,119160.0,119150.0,1.48201107]
[1752509829595,0.1362,119170.0,119160.0,0.22421692]
[1752509829864,0.1362,119170.0,119160.0,0.33972403]
[1752509830927,0.1362,119170.0,119160.0,0.30862403]
[1752509831139,0.24298419,119180.0,119160.0,0.29717245]
[1752509831354,0.39592544,119180.0,119160.0,0.18462534]
[1752509831572,0.00839144,119160.0,119150.0,0.09389073]
[1752509831798,0.37904137,119170.0,119150.0,0.32341605]
[1752509832011,0.08356632,119160.0,119150.0,0.04903816]
[1752509832270,0.08656646,119160.0,119150.0,0.05843094]
[1752509832481,0.22256646,119160.0,119150.0,0.23467929]
[1752509832686,0.21417474,119160.0,119150.0,0.23467929]
[1752509832895,0.2309586,119160.0,119150.0,0.05003816]
[1752509833105,0.2195666,119160.0,119150.0,0.05743094]
[1752509833315,0.21617474,119160.0,119150.0,0.24307193]
[1752509833588,0.21617474,119160.0,119150.0,0.25875443]
[1752509833799,0.21617474,119160.0,119150.0,0.26714686]
[1752509833800,0.19939151,119160.0,119150.0,0.26714686]
[1752509834012,0.21617502,119160.0,119150.0,0.25036179]
[1752509834223,0.22456681,119160.0,119150.0,0.07411344]
[1752509834434,0.19939151,119160.0,119150.0,0.25036172]
[1752509834644,0.20778316,119160.0,119150.0,0.25036179]
[1752509834845,0.21617488,119160.0,119150.0,0.25875443]
[1752509835085,0.39240836,119160.0,119150.0,0.06572066]
[1752509835298,0.3786252,119160.0,119150.0,0.06572066]
[1752509835514,0.3870172,119160.0,119150.0,0.06572066]
[1752509835726,0.37862548,119160.0,119150.0,0.06572066]
[1752509836148,0.37023355,119160.0,119150.0,0.06572066]
[1752509836980,0.37862534,119160.0,119150.0,0.06572066]
[1752509837194,0.058,119160.0,119150.0,0.24196901]
[1752509837435,0.06339144,119160.0,119150.0,0.25036158]
[1752509837649,0.19911172,119160.0,119150.0,0.06572066]
[1752509837857,0.19911151,119160.0,119150.0,0.24196908]
[1752509838069,0.19911151,119160.0,119150.0,0.25036172]
[1752509838248,0.19911144,119160.0,119150.0,0.24196908]
[1752509838483,0.19911144,119160.0,119150.0,0.25036179]
[1752509838484,0.20750295,119160.0,119150.0,0.25036179]
[1752509838730,0.20750295,119160.0,119150.0,0.07411344]
[1752509838911,0.21589467,119160.0,119150.0,0.23467929]
[1752509839152,0.0801746,119160.0,119150.0,0.25876456]
[1752509839363,0.2158546,119160.0,119150.0,0.25876456]
[1752509839581,0.39208787,119160.0,119150.0,0.06573079]
[1752509839814,0.84005937,119160.0,119150.0,0.06573079]
[1752509840459,0.21046393,119160.0,119150.0,0.06573079]
[1752509840667,0.37830548,119160.0,119150.0,0.06573079]
[1752509841359,0.87255937,119160.0,119150.0,0.06573079]
[1752509841566,0.41080548,119160.0,119150.0,0.06573079]
[1752509841777,0.37830548,119160.0,119150.0,0.06573079]
[1752509841989,0.37830548,119160.0,119150.0,0.0657322]
[1752509842202,0.22780688,119160.0,119150.0,0.0657322]
[1752509842416,0.62780688,119160.0,119150.0,0.0657322]
[1752509843268,0.62780737,119160.0,119150.0,0.0657322]
[1752509843691,0.61941537,119160.0,119150.0,0.0657322]
[1752509843899,0.59959158,119160.0,119150.0,0.25037305]
[1752509844109,0.46339158,119160.0,119150.0,0.0657322]
[1752509844322,0.59947158,119160.0,119150.0,0.07412498]
[1752509844532,0.59108,119160.0,119150.0,0.25876576]
[1752509844738,0.19108,119160.0,119150.0,0.26715819]
[1752509844951,0.20786316,119160.0,119150.0,0.24198062]
[1752509845199,0.20786316,119160.0,119150.0,0.0657322]
[1752509845412,0.19947151,119160.0,119150.0,0.25876569]
[1752509845637,0.20786316,119160.0,119150.0,0.0657322]
[1752509845841,0.21625495,119160.0,119150.0,0.0657322]
[1752509846057,0.40088043,119160.0,119150.0,0.0657322]
[1752509846266,0.87215937,119160.0,119150.0,0.0657322]
[1752509846686,0.37866548,119160.0,119150.0,0.0657322]
[1752509846898,0.38705699,119160.0,119150.0,0.0657322]
[1752509847310,0.22764688,119160.0,119150.0,0.0657322]
[1752509847742,0.39548843,119160.0,119150.0,0.0657322]
[1752509847949,0.06639144,119160.0,119150.0,0.23358899]
[1752509848157,0.20782295,119160.0,119150.0,0.2419817]
[1752509848368,0.19104,119160.0,119150.0,0.25876695]
[1752509848583,0.20782316,119160.0,119150.0,0.24198174]
[1752509848791,0.20782316,119160.0,119150.0,0.2335891]
[1752509849059,0.20782316,119160.0,119150.0,0.25037445]
[1752509849273,0.19775785,119160.0,119150.0,0.25876702]
[1752509849485,0.20614957,119160.0,119150.0,0.24198181]
[1752509849689,0.19775785,119160.0,119150.0,0.25037445]
[1752509849913,0.18936627,119160.0,119150.0,0.26715938]
[1752509850127,0.18085476,119160.0,119150.0,0.27555166]
[1752509850341,0.04493476,119180.0,119170.0,0.19300095]
[1752509850565,0.40171517,119180.0,119170.0,0.0156953]
[1752509850770,0.00446132,119210.0,119200.0,0.02516693]
[1752509850984,0.00446132,119210.0,119200.0,0.87117135]
[1752509851208,0.07009705,119220.0,119200.0,0.26506827]
[1752509851420,0.07009698,119220.0,119210.0,0.00106195]
[1752509851653,0.06488941,119220.0,119210.0,0.0156953]
[1752509851871,0.04493476,119220.0,119210.0,0.200232]
[1752509852084,0.0702507,119220.0,119210.0,0.19184373]
[1752509852311,0.0702507,119220.0,119210.0,0.01567481]
[1752509852538,0.00015365,119220.0,119210.0,0.28995789]
[1752509852753,0.00457531,119220.0,119210.0,0.78601178]
[1752509852984,0.00457531,119220.0,119210.0,0.82202178]
[1752509853192,0.00015365,119220.0,119210.0,0.82202178]
[1752509853609,0.00015365,119220.0,119210.0,0.36026789]
[1752509853814,0.00015365,119220.0,119210.0,1.96032121]
[1752509854022,0.06170652,119240.0,119230.0,0.00838715]
[1752509854230,0.07009254,119240.0,119230.0,0.01617765]
[1752509854442,0.07847954,119240.0,119230.0,0.01617765]
[1752509854648,0.41009317,119240.0,119230.0,0.01617765]
[1752509854822,0.58100247,119240.0,119230.0,0.01617765]
[1752509855072,0.57261638,119240.0,119230.0,0.01617765]
[1752509855524,0.57917683,119240.0,119230.0,0.01617765]
[1752509855973,0.4030613,119240.0,119230.0,0.01617765]
[1752509856193,0.39988102,119240.0,119230.0,0.19230781]
[1752509856405,0.54422704,119240.0,119230.0,0.01617765]
[1752509856613,0.55261313,119240.0,119230.0,0.00051141]
[1752509856867,0.56099936,119240.0,119230.0,0.01613784]
[1752509857084,0.71513655,119240.0,119230.0,0.01613784]
[1752509857295,1.17689044,119240.0,119230.0,0.01613013]
[1752509857502,1.17489044,119240.0,119230.0,0.01613013]
[1752509857709,0.71513655,119240.0,119230.0,0.01613013]
[1752509858160,0.53584109,119240.0,119230.0,0.20064701]
[1752509858368,0.48324045,119240.0,119230.0,0.20064701]
[1752509858818,0.49162626,119240.0,119230.0,0.2090338]
[1752509859050,0.50201214,119240.0,119230.0,0.18387314]
[1752509859277,0.49633913,119240.0,119230.0,0.2006473]
[1752509859508,0.35127311,119240.0,119230.0,0.20903423]
[1752509859742,0.00456045,119240.0,119230.0,0.21742109]
[1752509859967,0.01294626,119240.0,119230.0,0.21742109]
[1752509860196,0.00838581,119240.0,119230.0,0.21742102]
[1752509860415,0.03354408,119240.0,119230.0,0.20064737]
[1752509860657,0.03354401,119240.0,119230.0,0.2090343]
[1752509860886,0.35120967,119250.0,119240.0,0.17611539]
[1752509860887,0.002,119250.0,119240.0,0.17611539]
[1752509861119,0.002,119250.0,119240.0,0.2982397]
[1752509861349,0.18264383,119250.0,119240.0,0.09696583]
[1752509861574,0.83327466,119250.0,119240.0,0.01561872]
[1752509861790,0.8248892,119250.0,119240.0,0.01561872]
[1752509862047,0.36313531,119250.0,119240.0,0.01561872]
[1752509862258,1.1987892,119250.0,119240.0,0.01561872]
[1752509862490,1.2321492,119250.0,119240.0,0.01561872]
[1752509863366,1.31349631,119250.0,119240.0,0.01561872]
[1752509864059,0.66016055,119250.0,119240.0,0.01561872]
[1752509864347,0.70962556,119250.0,119240.0,0.01561872]
[1752509864564,0.70509531,119250.0,119240.0,0.01561872]
[1752509864800,1.10509531,119250.0,119240.0,0.01561872]
[1752509865444,0.55982964,119250.0,119240.0,0.01558006]
[1752509865660,0.5682151,119250.0,119240.0,0.01558006]
[1752509865874,0.5650351,119250.0,119240.0,0.01558006]
[1752509866091,0.7016751,119250.0,119240.0,0.01558006]
[1752509866313,0.71006105,119250.0,119240.0,0.01558006]
[1752509866732,0.71324105,119250.0,119240.0,0.01558006]
[1752509868169,0.70472424,119250.0,119240.0,0.01558006]
[1752509868802,0.70911719,119250.0,119240.0,0.01558006]
[1752509869213,0.56241821,119250.0,119240.0,0.01558006]
[1752509869425,0.69897821,119250.0,119240.0,0.01558006]
[1752509871184,0.0147782,119250.0,119240.0,0.01558006]
[1752509871393,0.33574407,119250.0,119240.0,0.01558006]
[1752509871614,0.17410783,119250.0,119240.0,0.09993717]
[1752509871874,0.16790898,119250.0,119240.0,0.09692717]
[1752509872294,0.16790898,119250.0,119240.0,0.28142886]
[1752509872504,0.16782898,119250.0,119240.0,0.28142893]
[1752509872725,0.16782898,119250.0,119240.0,0.28981523]
[1752509872929,0.16782898,119250.0,119240.0,0.28142893]
[1752509873181,0.17621444,119250.0,119240.0,0.09692717]
[1752509873395,0.17621444,119250.0,119240.0,0.09798763]
[1752509873597,0.16782884,119250.0,119240.0,0.10637407]
[1752509873802,0.15944338,119250.0,119240.0,0.28248939]
[1752509874029,0.15944338,119250.0,119240.0,0.28981523]
[1752509874244,0.00639295,119250.0,119240.0,0.29820146]
[1752509874457,0.49296901,119260.0,119240.0,0.340869]
[1752509874665,0.49288929,119260.0,119250.0,0.06781]
[1752509874878,0.36515426,119260.0,119250.0,0.04879671]
[1752509875091,0.35676929,119260.0,119250.0,0.04985673]
[1752509875307,0.67735998,119260.0,119250.0,0.01666108]
[1752509875521,0.68176995,119260.0,119250.0,0.01666108]
[1752509875753,0.68177045,119260.0,119250.0,0.01666108]
[1752509876162,0.6733857,119260.0,119250.0,0.01666108]
[1752509876366,0.66500087,119260.0,119250.0,0.01666108]
[1752509876582,0.52888087,119260.0,119250.0,0.01666108]
[1752509876798,1.17478952,119260.0,119250.0,0.01560106]
[1752509877476,0.71303563,119260.0,119250.0,0.01560106]
[1752509877863,0.70465066,119260.0,119250.0,0.01560106]
[1752509878106,1.10465066,119260.0,119250.0,0.01560106]
[1752509878335,0.96861066,119260.0,119250.0,0.01560106]
[1752509878575,1.10453066,119260.0,119250.0,0.01560106]
[1752509878818,0.70135066,119260.0,119250.0,0.01560106]
[1752509879028,0.69682562,119260.0,119250.0,0.01560106]
[1752509879241,0.68676754,119260.0,119250.0,0.01560106]
[1752509879444,0.66665137,119260.0,119250.0,0.01560106]
[1752509880333,1.19150526,119260.0,119250.0,0.01560106]
[1752509880553,0.72975137,119260.0,119250.0,0.01560106]
[1752509880825,0.68342074,119260.0,119250.0,0.01560106]
[1752509881066,0.50709095,119260.0,119250.0,0.01560106]
[1752509881308,0.64361109,119260.0,119250.0,0.01666108]
[1752509881548,0.63526641,119260.0,119250.0,0.01560106]
[1752509881782,0.63526641,119260.0,119250.0,0.01666108]
[1752509882012,0.63008158,119260.0,119250.0,0.01666108]
[1752509882483,0.63008158,119260.0,119250.0,0.01674012]
[1752509882946,0.63108158,119260.0,119250.0,0.01674012]
[1752509883200,0.63308158,119260.0,119250.0,0.01674012]
[1752509883468,0.63208158,119260.0,119250.0,0.01674012]
[1752509883683,0.63000158,119260.0,119250.0,0.0156801]
[1752509883904,0.63100158,119260.0,119250.0,0.0156801]
[1752509884582,0.6658784,119260.0,119250.0,0.0156801]
[1752509885699,0.6679284,119260.0,119250.0,0.0156801]
[1752509888617,0.37650534,119260.0,119250.0,0.0156801]
[1752509888857,0.20560452,119260.0,119250.0,0.0178301]
[1752509889071,0.34309002,119260.0,119250.0,0.0178301]
[1752509889299,0.0083844,119260.0,119250.0,0.18554498]
[1752509889518,0.13644,119260.0,119250.0,0.75380285]
[1752509889773,0.13644,119260.0,119250.0,0.3530435]
[1752509890007,0.14482454,119260.0,119250.0,0.34465783]
[1752509890258,0.002,119270.0,119250.0,0.1908745]
[1752509890494,0.002,119270.0,119260.0,1.30341584]
[1752509890710,0.00838166,119300.0,119280.0,0.17605421]
[1752509890933,0.0083811,119310.0,119280.0,0.35163088]
[1752509891154,0.02514351,119310.0,119300.0,0.002]
[1752509891380,0.78274698,119310.0,119300.0,0.01767906]
[1752509891595,0.86409409,119310.0,119300.0,0.01767316]
[1752509891825,1.67397495,119310.0,119300.0,0.01767316]
[1752509892049,1.5520695,119310.0,119300.0,0.01767316]
[1752509892270,1.6887095,119310.0,119300.0,0.01767316]
[1752509892486,0.6461779,119290.0,119280.0,0.002]
[1752509892704,0.72752501,119290.0,119280.0,0.002]
[1752509892924,0.66426401,119290.0,119280.0,0.002]
[1752509893166,0.1792389,119300.0,119280.0,0.0327]
[1752509893384,0.02514809,119290.0,119280.0,0.64902711]
[1752509893615,0.18442415,119290.0,119280.0,0.61404711]
[1752509893825,0.64937804,119290.0,119280.0,0.002]
[1752509894256,1.12617804,119290.0,119280.0,0.002]
[1752509895176,1.15907804,119290.0,119280.0,0.002]
[1752509895814,1.24042515,119290.0,119280.0,0.002]
[1752509896479,0.77867126,119290.0,119280.0,0.002]
[1752509896699,1.24042515,119290.0,119280.0,0.002]
[1752509898465,0.77867126,119290.0,119280.0,0.002]
[1752509898677,0.74577126,119290.0,119280.0,0.002]
[1752509898892,1.20748515,119290.0,119280.0,0.002]
[1752509899724,0.74573126,119290.0,119280.0,0.002]
[1752509899941,1.20748515,119290.0,119280.0,0.002]
[1752509900160,1.60748515,119290.0,119280.0,0.002]
[1752509900593,1.20953515,119290.0,119280.0,0.002]
[1752509900820,0.66663415,119290.0,119280.0,0.002]
[1752509901039,0.66647415,119290.0,119280.0,0.002]
[1752509901249,0.52647373,119290.0,119280.0,0.00415]
[1752509901460,0.01043244,119290.0,119280.0,0.00415]
[1752509901676,0.17246053,119290.0,119280.0,0.00415]
[1752509901895,0.34011917,119290.0,119280.0,0.00415]
[1752509902113,0.33173673,119290.0,119280.0,0.00415]
[1752509902344,0.14731229,119290.0,119280.0,0.00415]
[1752509902631,0.33435604,119290.0,119280.0,0.00415]
[1752509902852,0.32335429,119290.0,119280.0,0.002]
[1752509903076,0.77992539,119290.0,119280.0,0.002]
[1752509904143,0.3181715,119290.0,119280.0,0.002]
[1752509904571,0.3181715,119290.0,119280.0,0.01768946]
[1752509904786,0.3181715,119290.0,119280.0,0.01562944]
[1752509905225,1.2012725,119290.0,119280.0,0.01562944]
[1752509905680,0.73951861,119290.0,119280.0,0.01562944]
[1752509905910,0.34205,119290.0,119280.0,0.00215]
[1752509906149,0.13724,119290.0,119280.0,0.06823]
[1752509906387,0.14562237,119290.0,119280.0,0.06823]
[1752509906610,0.33592889,119290.0,119280.0,0.06823]
[1752509906823,0.32959701,119290.0,119270.0,0.56571112]
[1752509907033,0.008383,119280.0,119270.0,0.11314711]
[1752509907258,0.00838279,119290.0,119270.0,0.64434711]
[1752509907483,0.14558307,119280.0,119270.0,0.64649711]
[1752509907695,0.17911647,119280.0,119270.0,0.64947711]
[1752509907908,0.16234984,119280.0,119270.0,0.64947711]
[1752509908354,0.33840631,119280.0,119270.0,0.65047711]
[1752509908575,0.32163968,119280.0,119270.0,0.15047711]
[1752509908794,0.32231968,119280.0,119270.0,0.03495]
[1752509909017,0.78407357,119280.0,119270.0,0.03495]
[1752509909242,0.15464663,119280.0,119270.0,0.03495]
[1752509909492,0.79712673,119280.0,119270.0,0.001]
[1752509909733,0.32436975,119280.0,119270.0,0.001]
[1752509909979,0.78910364,119280.0,119270.0,0.001]
[1752509910724,0.78705364,119280.0,119270.0,0.001]
[1752509911709,0.62776415,119280.0,119270.0,0.001]
[1752509911951,0.79245685,119280.0,119270.0,0.001]
[1752509912389,0.33070296,119280.0,119270.0,0.001]
[1752509912603,0.15464621,119280.0,119270.0,0.001]
[1752509912815,0.16564944,119280.0,119270.0,0.001]
[1752509913038,0.00261988,119280.0,119270.0,0.06606913]
[1752509913253,0.16326984,119280.0,119270.0,0.06796]
[1752509913467,0.17165347,119280.0,119270.0,0.06796]
[1752509913681,0.01676635,119280.0,119270.0,0.06796]
[1752509913900,0.13816,119280.0,119270.0,0.06796]
[1752509914165,0.15492649,119280.0,119270.0,0.06796]
[1752509914615,0.00838251,119290.0,119270.0,0.06796]
[1752509914843,0.00298,119300.0,119280.0,0.32335502]
[1752509915060,0.13804,119290.0,119280.0,0.33906291]
[1752509915282,0.82041552,119310.0,119290.0,0.063]
[1752509915283,0.01028067,119310.0,119290.0,0.063]
[1752509915497,0.01028067,119310.0,119300.0,0.24846667]
[1752509915718,0.01028067,119310.0,119300.0,0.33857752]
[1752509915934,0.0021537,119310.0,119300.0,0.15416933]
[1752509916173,0.01013698,119310.0,119300.0,0.14540492]
[1752509916390,0.14865459,119310.0,119300.0,0.67042587]
[1752509916600,0.32466679,119310.0,119300.0,0.5308]
[1752509916819,0.0251454,119300.0,119280.0,0.0623]
[1752509917038,0.16330745,119290.0,119280.0,0.0623]
[1752509917255,0.33394687,119290.0,119280.0,0.54698108]
[1752509917481,0.33394687,119290.0,119280.0,0.65932819]
[1752509917482,0.00838244,119290.0,119280.0,0.65932819]
[1752509917704,0.02514774,119290.0,119280.0,0.59846819]
[1752509917970,0.15496495,119290.0,119280.0,0.59846819]
[1752509918182,0.32262429,119290.0,119280.0,0.59902933]
[1752509918399,0.78433818,119290.0,119280.0,0.63032933]
[1752509918609,0.78433818,119290.0,119280.0,0.12832933]
[1752509918820,0.32258429,119290.0,119280.0,0.12833014]
[1752509919484,0.32258429,119290.0,119280.0,0.62833014]
[1752509919892,0.77595546,119290.0,119280.0,0.62833014]
[1752509920121,0.77595546,119290.0,119280.0,0.01568303]
[1752509920346,0.77893546,119290.0,119280.0,0.01568303]
[1752509920582,0.17604157,119290.0,119280.0,0.01568303]
[1752509920817,0.20218966,119290.0,119280.0,0.08038303]
[1752509921056,0.33212715,119290.0,119280.0,0.08038303]
[1752509921337,0.01776551,119290.0,119280.0,0.16173014]
[1752509921547,0.32374415,119290.0,119280.0,0.16173014]
[1752509921759,0.32374415,119290.0,119280.0,0.16278884]
[1752509922397,0.78549804,119290.0,119280.0,0.16278884]
[1752509922612,0.15608551,119290.0,119280.0,0.16173014]
[1752509923039,0.16446795,119290.0,119280.0,0.16278884]
[1752509923255,0.001,119290.0,119280.0,0.84722845]
[1752509923477,0.1392,119290.0,119280.0,0.16173014]
[1752509923694,0.16434795,119290.0,119280.0,0.66278884]
[1752509923925,0.32362415,119290.0,119280.0,0.66173014]
[1752509924147,0.3152415,119290.0,119280.0,0.66172226]
[1752509924384,0.77997539,119290.0,119280.0,0.01567515]
[1752509924604,0.3152415,119290.0,119280.0,0.01567515]
[1752509924816,0.77699539,119290.0,119280.0,0.01567515]
[1752509925038,0.77699539,119290.0,119280.0,0.04727515]
[1752509925480,0.1770415,119290.0,119280.0,0.15912226]
[1752509925747,0.1770415,119290.0,119280.0,0.65912226]
[1752509925966,0.3153215,119290.0,119280.0,0.65912226]
[1752509926182,0.77707539,119290.0,119280.0,0.65912226]
[1752509926403,0.63879539,119290.0,119280.0,0.65912226]
[1752509926629,0.3153215,119290.0,119280.0,0.65912226]
[1752509926853,0.001,119290.0,119280.0,0.82566066]
[1752509927064,0.001,119290.0,119280.0,0.86792451]
[1752509927302,0.001,119290.0,119280.0,0.36792451]
[1752509927514,0.13916,119290.0,119280.0,0.36791791]
[1752509927748,0.001,119290.0,119280.0,0.36791791]
[1752509927973,0.001,119290.0,119280.0,3.11149391]
[1752509928196,0.33292366,119310.0,119300.0,0.0605]
[1752509928427,0.0083818,119300.0,119290.0,0.14184711]
[1752509928624,0.47013548,119300.0,119290.0,0.15751383]
[1752509928884,0.02514505,119300.0,119290.0,0.15751383]
[1752509929111,0.66292659,119300.0,119290.0,0.15751375]
[1752509929325,0.64914285,119300.0,119290.0,0.01566664]
[1752509929802,0.78746285,119300.0,119290.0,0.01566664]
[1752509930454,1.11089674,119300.0,119290.0,0.01566664]
[1752509930669,0.78746285,119300.0,119290.0,0.01566664]
[1752509931088,0.79046285,119300.0,119290.0,0.01566664]
[1752509931301,0.79146285,119300.0,119290.0,0.01566664]
[1752509931525,0.32970896,119300.0,119290.0,0.01566664]
[1752509931736,1.25321674,119300.0,119290.0,0.01566664]
[1752509931949,0.32970896,119300.0,119290.0,0.01566664]
[1752509932155,1.25321674,119300.0,119290.0,0.01566664]
[1752509932576,0.79146285,119300.0,119290.0,0.01566664]
[1752509934951,0.32970896,119300.0,119290.0,0.01566664]
[1752509935174,0.79146285,119300.0,119290.0,0.01566664]
[1752509936052,0.18442415,119290.0,119280.0,0.0001]
[1752509936273,0.48690191,119290.0,119280.0,0.01577992]
[1752509936458,0.63626484,119290.0,119280.0,0.01577991]
[1752509936723,0.66592348,119290.0,119280.0,0.01577991]
[1752509936942,0.78727825,119290.0,119280.0,0.01577991]
[1752509937403,0.78927825,119290.0,119280.0,0.01577991]
[1752509938028,0.79136825,119290.0,119280.0,0.0157826]
[1752509939316,0.32961436,119290.0,119280.0,0.0157826]
[1752509939547,0.47720647,119290.0,119280.0,0.0157826]
[1752509939776,0.02714746,119290.0,119280.0,0.16208841]
[1752509939995,0.33296652,119290.0,119280.0,0.16208841]
[1752509940208,0.32458408,119290.0,119280.0,0.16208841]
[1752509940424,0.64817797,119290.0,119280.0,0.12992971]
[1752509940652,0.32776408,119290.0,119280.0,0.09712971]
[1752509940869,0.78951797,119290.0,119280.0,0.09799595]
[1752509941172,0.32776408,119290.0,119280.0,0.09693725]
[1752509941276,0.78951797,119290.0,119280.0,0.09693725]
[1752509941713,0.78113532,119290.0,119280.0,0.01559014]
[1752509943247,0.64297532,119290.0,119280.0,0.01559014]
[1752509943463,0.31946143,119290.0,119280.0,0.01559014]
[1752509943677,0.64297532,119290.0,119280.0,0.01559014]
[1752509943885,0.00838307,119280.0,119270.0,0.0628]
[1752509944110,0.1384,119280.0,119270.0,0.14414711]
[1752509945452,0.1384,119280.0,119270.0,0.14520625]
[1752509945666,0.01676488,119290.0,119280.0,0.0324]
[1752509945881,0.15500488,119290.0,119280.0,0.14564711]
[1752509946095,0.33942903,119290.0,119280.0,0.14564711]
[1752509946319,0.33104708,119290.0,119280.0,0.14670581]
[1752509946534,0.15492495,119290.0,119280.0,0.14670581]
[1752509946757,0.80110299,119290.0,119280.0,0.14670581]
[1752509947006,0.79272055,119290.0,119280.0,0.14670581]
[1752509947223,0.77913532,119290.0,119280.0,0.08134711]
[1752509947922,0.00838328,119280.0,119270.0,0.0643]
[1752509948162,0.008383,119280.0,119270.0,0.1487659]
[1752509948384,0.01676621,119280.0,119270.0,0.1487659]
[1752509948591,0.02514956,119280.0,119270.0,0.1487659]
[1752509949076,0.01676621,119280.0,119270.0,0.1487659]
[1752509949309,0.32568411,119290.0,119270.0,0.1487659]
[1752509949577,0.16002495,119290.0,119270.0,0.1487659]
[1752509949817,0.15484621,119280.0,119270.0,0.1487659]
[1752509950041,0.146463,119280.0,119270.0,0.1487659]